Cogmind - Beta 13 @@@ ROGUE MODE // 2024.04.05 @ 12:36:26 Player: JackZewap Result: Self-destructed Performance ------------- Evolutions (1) 500 Regions Visited (3) 600 Robots Destroyed (25) 125 Value Destroyed (499) 499 Prototype IDs (0) 0 Alien Tech Used (0) 0 Bonus (0) 0 TOTAL SCORE: 1724 Bonus ------- None Cogmind --------- Core Integrity 363/400 Matter 150/300 Energy 100/100 System Corruption 0% Temperature Cool (0) Movement Treading (160) Location -9/Materials Parts ------- > --- POWER (1) -------- (None) > --- PROPULSION (2) --- Improved Treads > --- UTILITY (3) ------ Small Storage Unit Hacking Suite > --- WEAPON (3) ------- (None) > --- INVENTORY (8) ---- Improved Treads Medium Storage Unit Huge Storage Unit Peak State ------------ > --- POWER ------------ Ion Engine > --- PROPULSION ------- Improved Treads Improved Treads > --- UTILITY ---------- Small Storage Unit Improved Terrain Scanner > --- WEAPON ----------- Shotgun Shotgun > --- INVENTORY -------- Improved Treads Improved Treads Wheel Wheel Medium Storage Unit Huge Storage Unit Signal Interpreter Mining Laser [Rating: 14] Favorites ----------- Power Light Ion Engine Engine Light Ion Engine Power Core Light Nuclear Core Propulsion Wheel Treads Improved Treads Wheel Wheel Utility Small Storage Unit Device Improved Terrain Scanner Storage Small Storage Unit Hackware Hacking Suite Weapon Shotgun Energy Gun Medium Laser Ballistic Gun Shotgun Special Weapon Mining Laser Build | -11 -10 -10 -9 ------- Run | Yrd Mat Min Mat Slots Evolved 2 | . . . 2 Power . | . . . . Propulsion . | . . . . Utility 1 | . . . 1 Weapon 1 | . . . 1 Parts Attached 37 | 13 17 4 3 Power 3 | 1 1 1 . Engine 2 | 1 1 . . Core 1 | . . 1 . Reactor . | . . . . Propulsion 14 | 3 8 2 1 Treads 7 | . 4 2 1 Leg . | . . . . Wheel 7 | 3 4 . . Hover . | . . . . Flight . | . . . . Utility 9 | 3 4 1 1 Device 2 | 2 . . . Storage 6 | 1 4 1 . Processor . | . . . . Hackware 1 | . . . 1 Protection . | . . . . Artifact . | . . . . Weapon 11 | 6 4 . 1 Energy Gun 4 | 4 . . . Energy Cannon . | . . . . Ballistic Gun 4 | . 4 . . Ballistic Cannon . | . . . . Launcher . | . . . . Special Weapon 3 | 2 . . 1 Impact Weapon . | . . . . Slashing Weapon . | . . . . Piercing Weapon . | . . . . Special Melee Weapon . | . . . . Unidentified Prototypes . | . . . . Parts Lost 7 | . . 3 4 Power 1 | . . 1 . Propulsion 1 | . . . 1 Utility 2 | . . 2 . Weapon 3 | . . . 3 Highest Loss Streak 4 | . . 1 4 To Critical Strikes . | . . . . Average Slot Usage (%) 97 | . 99 96 61 Engine 12 | . 14 8 . Treads 6 | . 1 22 21 Wheel 20 | . 26 5 . Device 12 | . 14 8 . Storage 14 | . 13 17 11 Energy Gun 13 | . 17 . . Ballistic Gun 14 | . 10 28 21 Naked Turns . | . . . . Heaviest Build 22 | 12 22 18 11 Greatest Support 46 | 26 46 46 46 Greatest Overweight (x) 3 | 3 1 . . Average Overweight (x) . | . . . . Largest Inventory Capacity 25 | 8 25 8 8 Average Capacity 7 | 7 8 8 8 Most Carried 8 | 4 8 8 7 Average Carried 5 | . 6 7 4 Final Capacity 8 | 8 8 8 8 Final Carried 8 | 4 8 7 3 Class Distribution -------------------- 100% | Mutant Dominant Class ---------------- Mutant | -10/Materials Mutant | -10/Mines Mutant | -9/Materials Resources | -11 -10 -10 -9 ----------- Run | Yrd Mat Min Mat Matter Collected 715 | 321 225 169 . Remotely . | . . . . Salvage Created 736 | 134 316 161 125 Parts 46 | 10 17 9 10 Haulers Intercepted 2 | . 2 . . Recyclers Shooed . | . . . . Parts Field Recycled . | . . . . Retrieved Matter . | . . . . Parts Self-Destructed . | . . . . Prevented . | . . . . Kills | -11 -10 -10 -9 ------- Run | Yrd Mat Min Mat Combat Hostiles Destroyed 17 | . 6 6 5 Guns 17 | . 6 6 5 Classes Destroyed 8 | 2 5 . 1 Tunneler 3 | 3 . . . Hauler 2 | . 2 . . Recycler 1 | 1 . . . Operator 1 | . 1 . . Watcher 1 | . 1 . . Swarmer 8 | . 2 3 3 Grunt 8 | . 4 3 1 Sentry 1 | . . . 1 Best Kill Streak 4 | 3 2 3 4 Combat Bots Only 4 | . 2 3 4 Max Kills in Single Turn 1 | 1 1 1 1 Gunslinging . | . . . . Exploded . | . . . . Melee . | . . . . Uniques/NPCs Destroyed . | . . . . Combat | -11 -10 -10 -9 -------- Run | Yrd Mat Min Mat Hostile Shots Fired 111 | . 21 45 45 Missed 33 | . 8 13 12 Damage Taken 990 | . 150 500 340 Core 130 | . . 93 37 Absorbed by Shields . | . . . . Core Remaining (%) 81 | 100 . 62 . Volleys Fired 70 | 10 29 17 14 Largest 2 | 2 2 2 2 Hottest 150 | 150 90 46 46 Shots Fired 138 | 20 58 34 26 Gun 136 | 18 58 34 26 Cannon . | . . . . Launcher . | . . . . Special 2 | 2 . . . Kinetic 102 | . 42 34 26 Thermal 36 | 20 16 . . Explosive . | . . . . Electromagnetic . | . . . . Robot Hit Streak 10 | 4 10 6 6 Robot Miss Streak 6 | 2 4 3 6 Penetration Max . | . . . . Secondary Targets 5 | . 1 1 3 Max Gunslinging Chain 1 | . 1 1 1 Shots Hit Robots 103 | 12 43 28 20 Core Hits 46 | 4 21 12 9 Critical Kills . | . . . . Critical Parts Destroyed . | . . . . Critical Strikes 3 | 2 1 . . Burn 3 | 2 1 . . Melee Attacks . | . . . . Impact . | . . . . Slashing . | . . . . Piercing . | . . . . Sneak Attacks . | . . . . Combat Hostiles . | . . . . Follow-up Attacks . | . . . . Damage Inflicted 1281 | 136 474 378 293 Guns 1281 | 136 474 378 293 Cannons . | . . . . Explosions . | . . . . Melee . | . . . . Ramming . | . . . . Kinetic 992 | . 321 378 293 Thermal 289 | 136 153 . . Explosive . | . . . . Electromagnetic . | . . . . Impact . | . . . . Slashing . | . . . . Piercing . | . . . . Highest Corruption . | . . . . Average Corruption . | . . . . Corruption Purged . | . . . . Corruption Blocked . | . . . . Overload Shots . | . . . . Overflow Damage . | . . . . Projectiles . | . . . . Explosions . | . . . . Melee . | . . . . Knockbacks . | . . . . Impact . | . . . . Kinetic . | . . . . Secondary . | . . . . Self-Inflicted Damage . | . . . . Shots . | . . . . Rammed . | . . . . Targets Rammed . | . . . . Kicked . | . . . . Crushed . | . . . . Highest Temperature 130 | 130 120 37 . Average Temperature 35 | 47 33 12 . Received Heat Transfer 318 | . 69 189 60 Siege Activations . | . . . . Robots Corrupted . | . . . . Combat Hostiles . | . . . . Parts Fried . | . . . . Impact Corruptions . | . . . . Robots Melted 1 | 1 . . . Combat Hostiles . | . . . . Parts Melted 2 | 1 1 . . Heat Transferred 991 | 508 483 . . Parts Sabotaged . | . . . . Parts Stolen . | . . . . Parts Stripped . | . . . . Power Chain Reactions . | . . . . Alert | -11 -10 -10 -9 ------- Run | Yrd Mat Min Mat Peak Influence 193 | 20 107 176 193 Initial 68 | . 13 41 68 Average 45 | 9 29 111 100 Maximum Alert Level . | . . . . Low Security (%) 100 | 100 100 100 100 Level 1 . | . . . . Level 2 . | . . . . Level 3 . | . . . . Level 4 . | . . . . Level 5 . | . . . . High Security . | . . . . Max Security . | . . . . Squads Dispatched 3 | . 2 . 1 Investigation 1 | . 1 . . Extermination . | . . . . Reinforcement 2 | . 1 . 1 Assault . | . . . . Garrison . | . . . . Intercept . | . . . . Searches Triggered . | . . . . Construction Impeded . | . . . . Haulers Reinforced . | . . . . Active Scanning Responses . | . . . . Cargo Convoy Interrupts . | . . . . Stealth | -11 -10 -10 -9 --------- Run | Yrd Mat Min Mat Distress Signals 3 | . 1 . 2 Communications Jammed . | . . . . Distress Signals . | . . . . Times Spotted 34 | . 13 9 12 Peak Tracking Total 11 | . 4 3 11 Tactical Retreats 5 | . . 3 2 Traps | -11 -10 -10 -9 ------- Run | Yrd Mat Min Mat Traps Triggered 1 | . 1 . . Indirectly . | . . . . Trap Hack Attempts . | . . . . Triggered . | . . . . Disarmed . | . . . . Reprogrammed . | . . . . Reused . | . . . . Traps Extracted . | . . . . Installed . | . . . . Triggered . | . . . . Machines | -11 -10 -10 -9 ---------- Run | Yrd Mat Min Mat Machines Disabled . | . . . . Max in Single Turn . | . . . . Machines Repaired . | . . . . Machines Dismantled . | . . . . Machines Sabotaged . | . . . . Overloaded Fab Kills . | . . . . Hacking | -11 -10 -10 -9 --------- Run | Yrd Mat Min Mat Machines Accessed 6 | . 5 . 1 Terminals 5 | . 4 . 1 Fabricators . | . . . . Repair Stations . | . . . . Recycling Units 1 | . 1 . . Scanalyzers . | . . . . Garrison Access . | . . . . Total Hacks 20 | . 17 . 3 Successful 9 | . 8 . 1 Failed 11 | . 9 . 2 Catastrophic 1 | . 1 . . Database Lockouts . | . . . . Manual 10 | . 7 . 3 Terminals 17 | . 14 . 3 Fabricators . | . . . . Repair Stations . | . . . . Recycling Units 3 | . 3 . . Scanalyzers . | . . . . Garrison Access . | . . . . Terminal Hacks 7 | . 6 . 1 Part Schematic 1 | . 1 . . Robot Analysis 2 | . 2 . . Terminal Index 2 | . 1 . 1 Registered Components 1 | . 1 . . Zone Layout 1 | . 1 . . Fabricator Hacks . | . . . . Repair Station Hacks . | . . . . Recycling Unit Hacks 2 | . 2 . . Process 1 | . 1 . . Report Inventory 1 | . 1 . . Scanalyzer . | . . . . Garrison Access Hacks . | . . . . Unauthorized Hacks . | . . . . Terminals . | . . . . Fabricators . | . . . . Repair Stations . | . . . . Recycling Units . | . . . . Scanalyzers . | . . . . Garrison Access . | . . . . Data Cores Recovered . | . . . . Used . | . . . . Hacking Detections 6 | . 5 . 1 Full Trace Events 1 | . 1 . . Feedback Events . | . . . . Feedback Blocked . | . . . . Robot Schematics Acquired . | . . . . Robots Built . | . . . . Authchips . | . . . . Time . | . . . . Total Robot Build Rating . | . . . . Part Schematics Acquired 1 | . 1 . . Parts Built . | . . . . Authchips . | . . . . Time . | . . . . Total Part Build Rating . | . . . . Parts Repaired . | . . . . Time . | . . . . Parts Recycled . | . . . . Recycled Matter 578 | . 578 . . Retrieved Matter . | . . . . Retrieved Components . | . . . . Parts Scanalyzed . | . . . . Part Schematics Acquired . | . . . . Parts Damaged . | . . . . Bothacking | -11 -10 -10 -9 ------------ Run | Yrd Mat Min Mat Used RIF Installer . | . . . . Robots Hacked . | . . . . Non-combat . | . . . . Combat . | . . . . Robot Hacks Applied . | . . . . Relay Couplers Released . | . . . . Fabnet Peak Effective % . | . . . . Robots Rewired . | . . . . Allies Hacked . | . . . . Hacks Repelled . | . . . . Allies | -11 -10 -10 -9 -------- Run | Yrd Mat Min Mat Total Allies . | . . . . Largest Group . | . . . . Highest-Rated Group . | . . . . Highest-Rated Ally . | . . . . Total Orders . | . . . . Ally Attacks . | . . . . Total Damage . | . . . . Kills . | . . . . Allies Corrupted . | . . . . Allies Melted . | . . . . Intel | -11 -10 -10 -9 ------- Run | Yrd Mat Min Mat Robot Analysis Total 2 | . 2 . . Derelict Logs Recovered 1 | . . 1 . Drone Launches . | . . . . Drone Recoveries . | . . . . Exploration | -11 -10 -10 -9 ------------- Run | Yrd Mat Min Mat Turns Passed 2121 | 141 1517 354 109 Spaces Moved 1049 | 87 721 201 40 Core 14 | 14 . . . Treads 209 | . 34 135 40 Legs . | . . . . Wheels 826 | 73 687 66 . Hover . | . . . . Flight . | . . . . Fastest Speed 50 | 50 80 80 160 Average Speed 96 | 84 83 133 160 Slowest Speed 200 | 200 160 160 160 Overloaded Moves . | . . . . Propulsion Burnouts . | . . . . Robots Hopped . | . . . . Cave-ins Triggered . | . . . . Exploration Rate (%) 33 | 4 73 49 7 Regions Visited 3 Branch Regions 1 Pre-discovered Areas . | . . . . Known Exits Taken . | . . . . Unknown Exits Taken 3 | 1 1 1 . Scrap Searched . | . . . . Spaces Dug . | . . . . Terrain Destroyed 1 | 1 . . . Melee . | . . . . Projectile 1 | 1 . . . AOE . | . . . . Terrain Rammed . | . . . . Walls Destroyed . | . . . . Machines Disabled . | . . . . Actions | -11 -10 -10 -9 --------- Run | Yrd Mat Min Mat Total 2023 | 128 1583 253 59 Wait 822 | 13 782 27 . Move 1046 | 86 720 200 40 Hop . | . . . . Pick Up 17 | . 15 2 . Fast Attach 19 | 11 7 1 . Attach 9 | 2 2 3 2 Detach 8 | 6 2 . . Swap 9 | . 8 . 1 Drop 23 | . 18 3 2 Fire 70 | 10 29 17 14 Melee . | . . . . Ram . | . . . . Kick . | . . . . Crush . | . . . . Escape Stasis . | . . . . Rewire . | . . . . Trap . | . . . . Miscellaneous . | . . . . Route ------- -11/Scrapyard -10/Materials (discovered 3 exits: *Mat x2 / [*Min]) -10/Mines -9/Materials History --------- Turn | Location | Event 9 | -11/Scrapyard | Discovered new exit (range 16) 142 | -11/Scrapyard | Entered Materials 303 | -10/Materials | Build established: Mutant 660 | -10/Materials | Discovered new exit (range 16) 1345 | -10/Materials | Discovered new exit (range 10) 1625 | -10/Materials | Discovered new exit (range 9) 1659 | -10/Materials | Entered Mines 1810 | -10/Mines | Learned Materials stockpile data 1967 | -10/Mines | Discovered new exit (range 10) 2013 | -10/Mines | Entered Materials 2013 | -9/Materials | Evolved 2 slots: Utility x1, Weapon x1 2122 | -9/Materials | Self-destructed Last Messages --------------- 02079_ O-16 Technician sends out distress signal. 02079_ O-16 Technician: "IFF HANDSHAKE FAILED. SECURING TERMINAL." 02080_ W-16 Scout sends out distress signal. 02086_ O-16 Technician uses terminal to summon reinforcements. 02086_ ALERT: Hostiles spotted, dispatching reinforcements to Terminal M012. 02086_ O-16 Technician locks terminal. 02087_ S-10 Pest destroyed. 02090_ G-34 Mercenary destroyed. 02090_ Switching to secondary target: S-10 Pest. 02093_ S-10 Pest destroyed. 02093_ Switching to secondary target: S-10 Pest. 02099_ S-10 Pest destroyed. 02099_ Switching to secondary target: Y-45 Defender. 02105_ K-01 Serf collects debris. 02111_ Imp. Treads destroyed. 02111_ Shotgun destroyed. 02117_ Mining Laser destroyed. 02120_ Y-45 Defender destroyed. 02121_ Shotgun destroyed. Map ----- +----------------------------------------------------+ | ?????????????????????????????# #????? | | ????????????????????????????## ##???? | | ????????????????????????????# = #???? | | ????????????????????????????# = #???? | | ????????????????????????????# T #???? | | ????????????????????????????# #???? | | ????????????????????????????# #???? | | ????????????????????????????## ##???? | | ?????????????????????????????# #????? | | ?????????????????????????????# #????? | | ?????????????????????????????+ #????? | | ?????????????????????????????# #????? | | ?????????????????????????????# #????? | | ?????????????????????????????# #????? | | ?????????????????????????????# #????? | | ?????????????????????????????# #????? | | ?????????????????????????????# #????? | | ?????????????????????????????# #????? | | ????????????????????########## #????? | | ?=??????????????????+ o#????? | | ???????????########## #????? | | ??????????? """ "#???? | | ??????????? *a* """ T#???? | | ??????????????#########g%s """ "#???? | | ??????????????????????#== [ ##???? | | ??????????????????????#[ @ % #????? | | ??????????????????????#%###### #????? | | ??????????????????????#=#????? #????? | | ??????????????????????#!#????? #????? | | ??????????????????????#%#?????? #????? | | ??????????????????????#[#??????? #????? | | ??????????????????????#+#??????? #????? | | ?????????????????????? ??????? #????? | | ?????????????????????? ?????????????? | | ?????????????????????? ?????????????? | | ?????????????????????? ?????????????? | | ?????????????????????? ?????????????? | | ?????????????????????? ?????????????? | | ?????????????????????? ?????????????? | | ?????????????????????? ?????????????? | | ?????????????????????? ?????????????? | | ??????????????????????????????????????? | | ??????????????????????????????????????? | | ??????????????????????????????????????? | | ??????????????????????????????????????? | | ??????????????????????????????????????? | | ??????????????????????????????????????? | | ??????????????????????????????????????? | | ??????????????????????????????????????? | | ??????????????????????????????????????? | +----------------------------------------------------+ Best States ------------- Heat Dissipation 28 Energy Generation 14 Energy Capacity 250 Matter Stores 300 Matter Capacity 400 Sight Range 16 Terrain Scan Range 16 Terrain Scan Density 10 Evasion (%) 50 Recoil Reduction 2 Offensive Hacking 10 Item Schematics ----------------- Lgt. Armor Plating | -10/Materials | Hacked Robot Schematics ------------------ None Fabricated ------------ Nothing Alien Tech Used ----------------- None Achievements -------------- None Challenges ------------ None Game ------ Seed WaveForceDatajack Manual? 0 Play Time 00:22:27 Cumulative 20.0 hours Start 2024.04.05 @ 12:14:48 End 2024.04.05 @ 12:36:26 Sessions 1 Manual Loads 0 Difficulty Rogue Special Mode None Game No. 20 Rogue 14 Adventurer 6 Explorer 0 Win Type - Total 0 Types 0/0/0/0/0/0/0/0/0 Lore% 16 Gallery% 27 Achievement% 19 Wizard Run 0 Options --------- Layout 0 ASCII 0 Keyboard 1 Movement Numpad Keybinds 0 Fullscreen 1 Font 18/SmallcapsGlow Map View 76x50 Zoom Use 0% Tactical HUD 1 Map Filters NONE Filters NONE Steam 1 RUN: 9e79d18e-de3c-45bc-8e99-579e7813c20c